fUSD/lending_fUSD_20240331
["ID","MTS","AMOUNT","RATE_DAILY","PERIOD"]
[321127904,1711901475939,-1284.39,0.00056164,120]
[321127905,1711901475949,-500.0,0.00056164,120]
[321127906,1711901475959,-500.0,0.00056164,120]
[321127907,1711901475969,-9137.65,0.00056164,120]
[321127908,1711901475979,-9984.85,0.00056164,120]
[321127909,1711901475989,-500.0,0.00056164,120]
[321127910,1711901475999,-731.7,0.00056164,120]
[321127911,1711901476008,-974.58,0.00056164,120]
[321127912,1711901476018,-505.42,0.00056164,120]
[321127913,1711901476028,-151.0,0.00056192,120]
[321127914,1711901476038,-155.5561422,0.00056311,120]
[321127915,1711901476047,-1474.18,0.00056438,120]
[321127916,1711901476057,-500.0,0.00056438,120]
[321127917,1711901476067,-500.0,0.00056438,120]
[321127918,1711901476079,-314.094546,0.00056438,120]
[321127919,1711901476088,-500.0,0.00056438,120]
[321127920,1711901476097,-556.04,0.00056438,120]
[321127921,1711901476107,-956.39,0.00056438,120]
[321127922,1711901476116,-882.73,0.00056438,120]
[321127923,1711901476126,-500.0,0.00056438,120]
[321127924,1711901476135,-859.93,0.00056438,120]
[321127925,1711901476145,-737.17,0.00056438,120]
[321127926,1711901476156,-759.11,0.00056438,120]
[321127927,1711901476166,-302.39,0.00056438,120]
[321127928,1711901476175,-500.0,0.00056438,120]
[321127929,1711901476186,-500.0,0.00056438,120]
[321127930,1711901476196,-500.0,0.00056438,120]
[321127931,1711901476206,-880.58,0.00056438,120]
[321127932,1711901476217,-500.0,0.00056438,120]
[321127933,1711901476226,-500.0,0.00056438,120]
[321127934,1711901476238,-509.81,0.00056438,120]
[321127935,1711901476249,-500.0,0.00056438,120]
[321127936,1711901476259,-150.0,0.00056438,120]
[321127937,1711901476270,-500.0,0.00056438,120]
[321127938,1711901476280,-500.0,0.00056438,120]
[321127939,1711901476290,-500.0,0.00056438,120]
[321127940,1711901476300,-500.0,0.00056438,120]
[321127941,1711901476310,-500.0,0.00056438,120]
[321127942,1711901476320,-500.0,0.00056438,120]
[321127943,1711901476336,-500.0,0.00056438,120]
[321127944,1711901476346,-500.0,0.00056438,120]
[321127945,1711901476357,-500.0,0.00056438,120]
[321127946,1711901476367,-500.0,0.00056438,120]
[321127947,1711901476378,-500.0,0.00056438,120]
[321127948,1711901476388,-156.64,0.00056438,120]
[321127949,1711901476398,-500.0,0.00056438,120]
[321127950,1711901476409,-500.0,0.00056438,120]
[321127951,1711901476419,-583.26,0.00056438,120]
[321127952,1711901476429,-418.0,0.00056438,120]
[321127953,1711901476439,-500.0,0.00056438,120]
[321127954,1711901476449,-500.0,0.00056438,120]
[321127955,1711901476459,-502.35,0.00056438,120]
[321127956,1711901476468,-500.0,0.00056438,120]
[321127957,1711901476478,-500.0,0.00056438,120]
[321127958,1711901476488,-500.0,0.00056438,120]
[321127959,1711901476499,-500.0,0.00056438,2]
[321127960,1711901476508,-500.0,0.00056438,120]
[321127961,1711901476518,-500.0,0.00056438,120]
[321127962,1711901476528,-500.0,0.00056438,120]
[321127963,1711901476538,-500.0,0.00056438,120]
[321127964,1711901476548,-500.0,0.00056438,120]
[321127965,1711901476557,-500.0,0.00056438,120]
[321127966,1711901476567,-500.0,0.00056438,120]
[321127967,1711901476578,-500.0,0.00056438,120]
[321127968,1711901476588,-500.0,0.00056438,120]
[321127969,1711901476597,-780.08,0.00056438,120]
[321127970,1711901476606,-500.0,0.00056438,120]
[321127971,1711901476620,-500.0,0.00056438,120]
[321127972,1711901476629,-260.74,0.00056438,120]
[321127973,1711901476639,-500.0,0.00056438,120]
[321127974,1711901476648,-500.0,0.00056438,120]
[321127975,1711901476658,-500.0,0.00056438,120]
[321127976,1711901476668,-500.0,0.00056438,120]
[321127977,1711901476677,-500.0,0.00056438,120]
[321127978,1711901476687,-500.0,0.00056438,120]
[321127979,1711901476697,-500.0,0.00056438,120]
[321127980,1711901476707,-500.0,0.00056438,120]
[321127981,1711901476717,-500.0,0.00056438,120]
[321127982,1711901476727,-500.0,0.00056438,120]
[321127983,1711901476736,-500.0,0.00056438,120]
[321127984,1711901476746,-500.0,0.00056438,120]
[321127985,1711901476756,-552.74,0.00056438,120]
[321127986,1711901476765,-500.0,0.00056438,120]
[321127987,1711901476775,-500.0,0.00056438,120]
[321127988,1711901476785,-500.0,0.00056438,120]
[321127989,1711901476795,-500.0,0.00056438,120]
[321127990,1711901476804,-500.0,0.00056438,50]
[321127991,1711901476814,-500.0,0.00056438,120]
[321127992,1711901476826,-500.0,0.00056438,120]
[321127993,1711901476835,-860.04,0.00056438,120]
[321127994,1711901476845,-500.0,0.00056438,120]
[321127995,1711901476855,-500.0,0.00056438,120]
[321127996,1711901476865,-361.92733814,0.00056438,120]
[321127997,1711901476875,-500.0,0.00056438,120]
[321127998,1711901476885,-536.45,0.00056438,120]
[321127999,1711901476894,-500.0,0.00056438,120]
[321128000,1711901476904,-500.0,0.00056438,120]
[321128001,1711901476914,-500.0,0.00056438,120]
[321128002,1711901476924,-500.0,0.00056438,120]
[321128003,1711901476934,-500.0,0.00056438,120]
[321128004,1711901476943,-500.0,0.00056438,120]
[321128005,1711901476953,-500.0,0.00056438,120]
[321128006,1711901476962,-233.36,0.00056438,120]
[321128007,1711901476972,-500.0,0.00056438,120]
[321128008,1711901476982,-838.17,0.00056438,120]
[321128009,1711901476991,-500.0,0.00056438,120]
[321128010,1711901477001,-500.0,0.00056438,120]
[321128011,1711901477011,-155.98,0.00056438,120]
[321128012,1711901477021,-500.0,0.00056438,120]
[321128013,1711901477031,-272.16,0.00056438,120]
[321128014,1711901477041,-500.0,0.00056438,120]
[321128015,1711901477051,-500.0,0.00056438,120]
[321128016,1711901477060,-721.29,0.00056438,120]
[321128017,1711901477069,-500.0,0.00056438,120]
[321128018,1711901477080,-188.95,0.00056438,120]
[321128019,1711901477089,-564.31,0.00056438,120]
[321128020,1711901477099,-573.07,0.00056438,120]
[321128021,1711901477109,-586.0,0.00056438,120]
[321128022,1711901477119,-500.0,0.00056438,120]
[321128023,1711901477129,-1795.72,0.00056438,21]
[321128024,1711901477139,-500.0,0.00056438,120]
[321128025,1711901477149,-1222.41,0.00056438,120]
[321128026,1711901477159,-589.13,0.00056438,120]
[321128027,1711901477169,-1633.48,0.00056438,120]
[321128028,1711901477178,-500.0,0.00056438,120]
[321128029,1711901477188,-432.35,0.00056438,120]
[321128030,1711901477197,-500.0,0.00056438,120]
[321128031,1711901477206,-500.0,0.00056438,120]
[321128032,1711901477217,-500.0,0.00056438,120]
[321128033,1711901477226,-500.0,0.00056438,120]
[321128034,1711901477237,-500.0,0.00056438,120]
[321128035,1711901477246,-2610.3,0.00056438,120]
[321128036,1711901477256,-957.79,0.00056438,120]
[321128037,1711901477266,-152.99,0.00056438,120]
[321128038,1711901477277,-832.75,0.00056438,120]
[321128039,1711901477287,-500.0,0.00056438,120]
[321128040,1711901477297,-814.32,0.00056438,120]
[321128041,1711901477307,-500.0,0.00056438,120]
[321128042,1711901477317,-500.0,0.00056438,120]
[321128043,1711901477328,-581.07,0.00056438,120]
[321128044,1711901477338,-2279.79,0.00056438,120]
[321128045,1711901477348,-500.0,0.00056438,120]
[321128046,1711901477358,-500.0,0.00056438,120]
[321128047,1711901477368,-500.0,0.00056438,120]
[321128048,1711901477378,-174.95660723,0.00056438,120]
[321128049,1711901477388,-226.27,0.00056438,120]
[321128050,1711901477398,-500.0,0.00056438,120]
[321128051,1711901477408,-1846.66,0.00056438,120]
[321128052,1711901477418,-833.33,0.00056438,120]
[321128053,1711901477428,-500.0,0.00056438,120]
[321128054,1711901477438,-500.0,0.00056438,120]
[321128055,1711901477448,-5170.47,0.00056438,120]
[321128056,1711901477458,-2760.2,0.00056438,120]
[321128057,1711901477468,-1734.48,0.00056438,120]
[321128058,1711901477478,-8725.15,0.00056438,120]
[321128059,1711901477490,-1268.49,0.00056438,120]
[321128060,1711901477499,-500.0,0.00056438,120]
[321128061,1711901477508,-1226.84,0.00056438,120]
[321128062,1711901477518,-4548.58,0.00056438,120]
[321128063,1711901477528,-500.0,0.00056438,120]
[321128064,1711901477538,-491.96,0.00056438,120]
[321128065,1711901477549,-1479.87,0.00056438,120]
[321128066,1711901477559,-500.0,0.00056438,120]
[321128067,1711901477569,-1697.5,0.00056438,120]
[321128068,1711901477579,-500.0,0.00056438,120]
[321128069,1711901477589,-2334.24,0.00056438,120]
[321128070,1711901477599,-593.61,0.00056438,120]
[321128071,1711901477611,-2071.17,0.00056438,120]
[321128072,1711901477621,-500.0,0.00056438,120]
[321128073,1711901477631,-500.0,0.00056438,120]
[321128074,1711901477785,-1307.1,0.00056438,120]
[321128075,1711901477795,-2606.99,0.00056438,120]
[321128076,1711901477804,-500.0,0.00056438,120]
[321128077,1711901477814,-528.9,0.00056438,120]
[321128078,1711901477823,-500.0,0.00056438,120]
[321128079,1711901477838,-1383.62,0.00056438,120]
[321128080,1711901477847,-500.0,0.00056438,120]
[321128081,1711901477857,-3025.45,0.00056438,120]
[321128082,1711901477866,-500.0,0.00056438,120]
[321128083,1711901477875,-5933.46,0.00056438,120]
[321128084,1711901477885,-500.0,0.00056438,120]
[321128085,1711901477895,-554.92,0.00056438,120]
[321128086,1711901477904,-4835.56,0.00056438,120]
[321128087,1711901477914,-1114.13,0.00056438,120]
[321128088,1711901477923,-500.0,0.00056438,120]
[321128089,1711901477933,-1551.31,0.00056438,120]
[321128090,1711901477943,-500.0,0.00056438,120]
[321128091,1711901477953,-256.09,0.00056438,120]
[321128092,1711901477963,-500.0,0.00056438,120]
[321128093,1711901477973,-1225.51,0.00056438,120]
[321128094,1711901477982,-500.0,0.00056438,120]
[321128095,1711901477991,-1642.24,0.00056438,120]
[321128096,1711901478001,-1400.86,0.00056438,120]
[321128097,1711901478010,-5107.76,0.00056438,120]
[321128098,1711901478020,-7108.28,0.00056438,120]
[321128099,1711901478029,-500.0,0.00056438,120]
[321128100,1711901478038,-500.0,0.00056438,120]
[321128101,1711901478048,-500.0,0.00056438,120]
[321128102,1711901478057,-500.0,0.00056438,120]
[321128103,1711901478066,-1267.36,0.00056438,120]
[321128104,1711901478078,-500.0,0.00056438,120]
[321128105,1711901478087,-500.0,0.00056438,7]
[321128106,1711901478097,-1487.37,0.00056438,120]
[321128107,1711901478107,-977.83,0.00056438,120]
[321128108,1711901478118,-500.0,0.00056438,120]
[321128109,1711901478128,-500.0,0.00056438,120]
[321128110,1711901478137,-2308.38,0.00056438,120]
[321128111,1711901478148,-1843.78,0.00056438,120]
[321128112,1711901478157,-500.0,0.00056438,120]
[321128113,1711901478167,-500.0,0.00056438,120]
[321128114,1711901478177,-500.0,0.00056438,120]
[321128115,1711901478188,-500.0,0.00056438,120]
[321128116,1711901478198,-500.0,0.00056438,120]
[321128117,1711901478209,-1933.04,0.00056438,120]
[321128118,1711901478219,-500.0,0.00056438,120]
[321128119,1711901478230,-500.0,0.00056438,120]
[321128120,1711901478240,-500.0,0.00056438,120]
[321128121,1711901478250,-500.0,0.00056438,120]
[321128122,1711901478260,-925.52,0.00056438,120]
[321128123,1711901478269,-500.0,0.00056438,16]
[321128124,1711901478279,-4054.58,0.00056438,120]
[321128125,1711901478289,-3182.14,0.00056438,120]
[321128126,1711901478298,-500.0,0.00056438,120]
[321128127,1711901478308,-203.38,0.00056438,120]
[321128128,1711901478318,-1284.39,0.00056438,120]
[321128129,1711901478328,-500.0,0.00056438,120]
[321128130,1711901478338,-500.0,0.00056438,120]
[321128131,1711901478348,-9137.65,0.00056438,120]
[321128132,1711901478358,-9984.85,0.00056438,120]
[321128133,1711901478368,-731.7,0.00056438,120]
[321128134,1711901478378,-500.0,0.00056438,120]
[321128135,1711901478387,-974.58,0.00056438,120]
[321128136,1711901478396,-505.42,0.00056438,120]
[321128137,1711901478405,-155.39690537,0.00056615,120]
[321128138,1711901478414,-1474.18,0.00056712,120]
[321128139,1711901478423,-500.0,0.00056712,120]
[321128140,1711901478432,-500.0,0.00056712,120]
[321128141,1711901478442,-556.04,0.00056712,120]
[321128142,1711901478451,-956.39,0.00056712,120]
[321128143,1711901478461,-882.73,0.00056712,120]
[321128144,1711901478470,-408.2,0.00056712,120]
[321128145,1711901478479,-859.93,0.00056712,120]
[321128146,1711901478489,-737.17,0.00056712,120]
[321128147,1711901478499,-759.11,0.00056712,120]
[321128148,1711901478508,-500.0,0.00056712,120]
[321128149,1711901478517,-500.0,0.00056712,120]
[321128150,1711901478527,-500.0,0.00056712,120]
[321128151,1711901478537,-880.58,0.00056712,120]
[321128152,1711901478546,-500.0,0.00056712,120]
[321128153,1711901478556,-500.0,0.00056712,120]
[321128154,1711901478566,-509.81,0.00056712,120]
[321128155,1711901478576,-500.0,0.00056712,120]
[321128156,1711901478585,-150.0,0.00056712,120]
[321128157,1711901478595,-500.0,0.00056712,120]
[321128158,1711901478606,-500.0,0.00056712,120]
[321128159,1711901478618,-500.0,0.00056712,120]
[321128160,1711901478627,-500.0,0.00056712,120]
[321128161,1711901478636,-500.0,0.00056712,120]
[321128162,1711901478646,-500.0,0.00056712,120]
[321128163,1711901478656,-500.0,0.00056712,120]
[321128164,1711901478666,-500.0,0.00056712,120]
[321128165,1711901478676,-500.0,0.00056712,120]
[321128166,1711901478687,-500.0,0.00056712,120]
[321128167,1711901478697,-500.0,0.00056712,120]
[321128168,1711901478706,-500.0,0.00056712,120]
[321128169,1711901478715,-500.0,0.00056712,120]
[321128170,1711901478724,-583.26,0.00056712,120]
[321128171,1711901478734,-500.0,0.00056712,120]
[321128172,1711901478743,-502.35,0.00056712,120]
[321128173,1711901478753,-502.6,0.00056712,120]
[321128174,1711901478762,-500.0,0.00056712,120]
[321128175,1711901478772,-500.0,0.00056712,120]
[321128176,1711901478783,-500.0,0.00056712,120]
[321128177,1711901478793,-500.0,0.00056712,2]
[321128178,1711901478802,-500.0,0.00056712,120]
[321128179,1711901478812,-500.0,0.00056712,120]
[321128180,1711901478821,-500.0,0.00056712,120]
[321128181,1711901478832,-504.69,0.00056712,120]
[321128182,1711901478841,-500.0,0.00056712,120]
[321128183,1711901478850,-500.0,0.00056712,120]
[321128184,1711901478860,-446.3,0.00056712,120]
[321128185,1711901478869,-500.0,0.00056712,120]
[321128186,1711901478879,-500.0,0.00056712,120]
[321128187,1711901478888,-780.08,0.00056712,120]
[321128188,1711901478897,-500.0,0.00056712,120]
[321128189,1711901478906,-500.0,0.00056712,120]
[321128190,1711901478916,-500.0,0.00056712,120]
[321128191,1711901478925,-500.0,0.00056712,120]
[321128192,1711901478935,-500.0,0.00056712,120]
[321128193,1711901478944,-500.0,0.00056712,120]
[321128194,1711901478954,-500.0,0.00056712,120]
[321128195,1711901478963,-500.0,0.00056712,120]
[321128196,1711901478972,-500.0,0.00056712,120]
[321128197,1711901478982,-500.0,0.00056712,120]
[321128198,1711901478992,-500.0,0.00056712,120]
[321128199,1711901479001,-500.0,0.00056712,120]
[321128200,1711901479010,-500.0,0.00056712,120]
[321128201,1711901479020,-500.0,0.00056712,120]
[321128202,1711901479030,-500.0,0.00056712,120]
[321128203,1711901479039,-500.0,0.00056712,120]
[321128204,1711901479048,-500.0,0.00056712,120]
[321128205,1711901479057,-500.0,0.00056712,120]
[321128206,1711901479066,-437.8,0.00056712,50]
[321128207,1711901479076,-500.0,0.00056712,120]
[321128208,1711901479086,-500.0,0.00056712,120]
[321128209,1711901479095,-860.04,0.00056712,120]
[321128210,1711901479104,-500.0,0.00056712,120]
[321128211,1711901479113,-500.0,0.00056712,120]
[321128212,1711901479122,-500.0,0.00056712,120]
[321128213,1711901479131,-500.0,0.00056712,120]
[321128214,1711901479140,-228.47,0.00056712,120]
[321128215,1711901479149,-500.0,0.00056712,120]
[321128216,1711901479158,-500.0,0.00056712,120]
[321128217,1711901479168,-500.0,0.00056712,120]
[321128218,1711901479177,-500.0,0.00056712,120]
[321128219,1711901479186,-500.0,0.00056712,120]
[321128220,1711901479195,-838.17,0.00056712,120]
[321128221,1711901479204,-500.0,0.00056712,120]
[321128222,1711901479213,-156.81,0.00056712,120]
[321128223,1711901479222,-500.0,0.00056712,120]
[321128224,1711901479231,-182.28553299,0.00056712,120]
[321128225,1711901479240,-500.0,0.00056712,120]
[321128226,1711901479249,-500.0,0.00056712,120]
[321128227,1711901479258,-721.29,0.00056712,120]
[321128228,1711901479267,-586.0,0.00056712,120]
[321128229,1711901479276,-500.0,0.00056712,120]
[321128230,1711901479285,-1795.72,0.00056712,21]
[321128231,1711901479294,-252.87,0.00056712,120]
[321128232,1711901479303,-1222.41,0.00056712,120]
[321128233,1711901479313,-589.13,0.00056712,120]
[321128234,1711901479322,-1633.48,0.00056712,120]
[321128235,1711901479331,-500.0,0.00056712,120]
[321128236,1711901479340,-230.14968626,0.00056712,120]
[321128237,1711901479349,-500.0,0.00056712,120]
[321128238,1711901479358,-500.0,0.00056712,120]
[321128239,1711901479367,-500.0,0.00056712,120]
[321128240,1711901479376,-500.0,0.00056712,120]
[321128241,1711901479385,-2610.3,0.00056712,120]
[321128242,1711901479395,-957.79,0.00056712,120]
[321128243,1711901479405,-832.75,0.00056712,120]
[321128244,1711901479415,-500.0,0.00056712,120]
[321128245,1711901479426,-814.32,0.00056712,120]
[321128246,1711901479436,-500.0,0.00056712,120]
[321128247,1711901479446,-500.0,0.00056712,120]
[321128248,1711901479456,-1000.0,0.00056712,120]
[321128249,1711901479466,-581.07,0.00056712,120]
[321128250,1711901479475,-2279.79,0.00056712,120]
[321128251,1711901479485,-500.0,0.00056712,120]
[321128252,1711901479494,-500.0,0.00056712,120]
[321128253,1711901479504,-187.21,0.00056712,120]
[321128254,1711901479513,-500.0,0.00056712,120]
[321128255,1711901479522,-1846.66,0.00056712,120]
[321128256,1711901479531,-833.33,0.00056712,120]
[321128257,1711901479542,-570.65,0.00056712,120]
[321128258,1711901479551,-418.07,0.00056712,120]
[321128259,1711901479560,-5170.47,0.00056712,120]
[321128260,1711901479569,-2760.2,0.00056712,120]
[321128261,1711901479578,-1734.48,0.00056712,120]
[321128262,1711901479588,-8725.15,0.00056712,120]
[321128263,1711901479597,-1268.49,0.00056712,120]
[321128264,1711901479606,-500.0,0.00056712,120]
[321128265,1711901479618,-1226.84,0.00056712,120]
[321128266,1711901479627,-4548.58,0.00056712,120]
[321128267,1711901479637,-500.0,0.00056712,120]
[321128268,1711901479646,-1479.87,0.00056712,120]
[321128269,1711901479656,-500.0,0.00056712,120]
[321128270,1711901479665,-1697.5,0.00056712,120]
[321128271,1711901479674,-500.0,0.00056712,120]
[321128272,1711901479683,-2334.24,0.00056712,120]
[321128273,1711901479694,-2071.17,0.00056712,120]
[321128274,1711901479703,-500.0,0.00056712,120]
[321128275,1711901479714,-500.0,0.00056712,120]
[321128276,1711901479723,-1307.1,0.00056712,120]
[321128277,1711901479733,-2606.99,0.00056712,120]
[321128278,1711901479743,-500.0,0.00056712,120]
[321128279,1711901479752,-500.0,0.00056712,120]
[321128280,1711901479761,-1383.62,0.00056712,120]
[321128281,1711901479770,-500.0,0.00056712,120]
[321128282,1711901479779,-3025.45,0.00056712,120]
[321128283,1711901479788,-227.05805847,0.00056712,120]
[321128284,1711901479799,-5933.46,0.00056712,120]
[321128285,1711901479809,-500.0,0.00056712,120]
[321128286,1711901479821,-554.92,0.00056712,120]
[321128287,1711901479830,-4835.56,0.00056712,120]
[321128288,1711901479839,-1114.13,0.00056712,120]
[321128289,1711901479849,-500.0,0.00056712,120]
[321128290,1711901479858,-1551.31,0.00056712,120]
[321128291,1711901479867,-500.0,0.00056712,120]
[321128292,1711901479877,-500.0,0.00056712,120]
[321128293,1711901479886,-1225.51,0.00056712,120]
[321128294,1711901479895,-500.0,0.00056712,120]
[321128295,1711901479904,-1642.24,0.00056712,120]
[321128296,1711901479914,-1400.86,0.00056712,120]
[321128297,1711901479923,-5107.76,0.00056712,120]
[321128298,1711901479932,-7108.28,0.00056712,120]
[321128299,1711901479941,-500.0,0.00056712,120]
[321128300,1711901479950,-500.0,0.00056712,120]
[321128301,1711901479959,-500.0,0.00056712,120]
[321128302,1711901479968,-500.0,0.00056712,120]
[321128303,1711901479977,-1267.36,0.00056712,120]
[321128304,1711901479987,-275.12,0.00056712,120]
[321128305,1711901479996,-221.47,0.00056712,7]
[321128306,1711901480006,-1487.37,0.00056712,120]
[321128307,1711901480015,-977.83,0.00056712,120]
[321128308,1711901480024,-500.0,0.00056712,120]
[321128309,1711901480033,-500.0,0.00056712,120]
[321128310,1711901480042,-151.0,0.00056712,120]
[321128311,1711901480052,-2308.38,0.00056712,120]
[321128312,1711901480061,-151.0,0.00056712,120]
[321128313,1711901480070,-1843.78,0.00056712,120]
[321128314,1711901480080,-500.0,0.00056712,120]
[321128315,1711901480089,-500.0,0.00056712,120]
[321128316,1711901480099,-500.0,0.00056712,120]
[321128317,1711901480108,-500.0,0.00056712,120]
[321128318,1711901480117,-500.0,0.00056712,120]
[321128319,1711901480126,-1933.04,0.00056712,120]
[321128320,1711901480136,-193.44,0.00056712,120]
[321128321,1711901480144,-500.0,0.00056712,120]
[321128322,1711901480153,-500.0,0.00056712,120]
[321128323,1711901480163,-500.0,0.00056712,120]
[321128324,1711901480172,-925.52,0.00056712,120]
[321128325,1711901480181,-500.0,0.00056712,16]
[321128326,1711901480191,-4054.58,0.00056712,120]
[321128327,1711901480200,-3182.14,0.00056712,120]
[321128328,1711901480210,-500.0,0.00056712,120]
[321128329,1711901480219,-1284.39,0.00056712,120]
[321128330,1711901480229,-353.1022126,0.00056712,120]
[321128331,1711901480238,-500.0,0.00056712,120]
[321128332,1711901480251,-258.439021,0.00056712,120]
[321128333,1711901480260,-9137.65,0.00056712,120]
[321128334,1711901480270,-9984.85,0.00056712,120]
[321128335,1711901480279,-731.7,0.00056712,120]
[321128336,1711901480289,-974.58,0.00056712,120]
[321128337,1711901480298,-500.0,0.00056712,120]
[321128338,1711901480307,-505.42,0.00056712,120]
[321128339,1711901480316,-150.0,0.00056766,120]
[321128340,1711901480326,-8430.989632,0.000568,30]
[321128341,1711901480335,-604.0,0.00056805,7]
[321128342,1711901480344,-154.56,0.00056821,120]
[321128343,1711901480353,-151.0,0.00056822,120]
[321128344,1711901480362,-999.0,0.00056875,2]
[321128345,1711901480372,-1003.4105,0.00056899,30]
[321128346,1711901480384,-182.04,0.000569,14]
[321128347,1711901480393,-155.39690537,0.00056971,120]
[321128348,1711901480402,-838.06132381,0.00056986,2]
[321128349,1711901480412,-1474.18,0.00056986,120]
[321128350,1711901480421,-500.0,0.00056986,120]
[321128351,1711901480430,-500.0,0.00056986,120]
[321128352,1711901480439,-556.04,0.00056986,120]
[321128353,1711901480448,-956.39,0.00056986,120]
[321128354,1711901480457,-882.73,0.00056986,120]
[321128355,1711901480609,-859.93,0.00056986,120]
[321128356,1711901480619,-737.17,0.00056986,120]
[321128357,1711901480628,-759.11,0.00056986,120]
[321128358,1711901480637,-500.0,0.00056986,120]
[321128359,1711901480646,-500.0,0.00056986,120]
[321128360,1711901480655,-500.0,0.00056986,120]
[321128361,1711901480664,-880.58,0.00056986,120]
[321128362,1711901480674,-500.0,0.00056986,120]
[321128363,1711901480683,-316.02739878,0.00056986,120]
[321128364,1711901480694,-509.81,0.00056986,120]
[321128365,1711901480703,-500.0,0.00056986,120]
[321128366,1711901480712,-150.0,0.00056986,120]
[321128367,1711901480721,-500.0,0.00056986,120]
[321128368,1711901480731,-500.0,0.00056986,120]
[321128369,1711901480740,-500.0,0.00056986,120]
[321128370,1711901480748,-500.0,0.00056986,120]
[321128371,1711901480758,-500.0,0.00056986,120]
[321128372,1711901480767,-500.0,0.00056986,120]
[321128373,1711901480776,-500.0,0.00056986,120]
[321128374,1711901480785,-500.0,0.00056986,120]
[321128375,1711901480795,-500.0,0.00056986,120]
[321128376,1711901480804,-500.0,0.00056986,120]
[321128377,1711901480813,-500.0,0.00056986,120]
[321128378,1711901480823,-500.0,0.00056986,120]
[321128379,1711901480833,-500.0,0.00056986,120]
[321128380,1711901480842,-583.26,0.00056986,120]
[321128381,1711901480851,-502.35,0.00056986,120]
[321128382,1711901480860,-500.0,0.00056986,120]
[321128383,1711901480870,-500.0,0.00056986,120]
[321128384,1711901480879,-500.0,0.00056986,120]
[321128385,1711901480889,-500.0,0.00056986,120]
[321128386,1711901480899,-500.0,0.00056986,2]
[321128387,1711901480907,-500.0,0.00056986,120]
[321128388,1711901480916,-500.0,0.00056986,120]
[321128389,1711901480925,-500.0,0.00056986,120]
[321128390,1711901480935,-500.0,0.00056986,120]
[321128391,1711901480944,-500.0,0.00056986,120]
[321128392,1711901480953,-500.0,0.00056986,120]
[321128393,1711901480963,-500.0,0.00056986,120]
[321128394,1711901480972,-780.08,0.00056986,120]
[321128395,1711901480981,-500.0,0.00056986,120]
[321128396,1711901480990,-500.0,0.00056986,120]
[321128397,1711901480999,-500.0,0.00056986,120]
[321128398,1711901481008,-500.0,0.00056986,120]
[321128399,1711901481017,-413.47,0.00056986,120]
[321128400,1711901481026,-500.0,0.00056986,120]
[321128401,1711901481035,-500.0,0.00056986,120]
[321128402,1711901481044,-500.0,0.00056986,120]
[321128403,1711901481053,-500.0,0.00056986,120]